Name,Sub Group,Service Area's,Expense Type,Narrative,Date,Transaction Number,Amount,Supplier Name,Supplier Ref,Period ,Year
Allerdale Borough Council,15508,Supplies & Services,Housing & Health Pay Group,Subscriptions,17/04/2019,430473,505,CHART INST OF ENVIRO HEALTH,A00035,1,2019
Allerdale Borough Council,15550,Supplies & Services,Estates,General-Service Related Fees,03/04/2019,430474,2179.8,COSTAR UK LTD,A02427,1,2019
Allerdale Borough Council,12100,Premises,Asset Transfer,Budget-External Maintenance & Decoration,03/04/2019,430475,23146.2,TOMAN PAVING LTD,C00223,1,2019
Allerdale Borough Council,15506,Supplies & Services,Tenanted Properties,Professional Services,03/04/2019,430476,59.4,WALTON GOODLAND LTD,A01226,1,2019
Allerdale Borough Council,10401,Employee Costs,Customer Services Pay Group,Agency Staff Costs,03/04/2019,430477,583.12,ADECCO RECRUITMENT,A00188,1,2019
Allerdale Borough Council,15503,Supplies & Services,Revenue,Court and Tribunal Costs,03/04/2019,430478,94,HMCTS ,A00275,1,2019
Allerdale Borough Council,15506,Supplies & Services,Legal Services,Professional Services,24/04/2019,430479,850,KINGS CHAMBERS,A00348,1,2019
Allerdale Borough Council,15101,Supplies & Services,Environmental Protection,Equipment Costs,24/04/2019,430480,5013,CIRRUS RESEARCH,A02159,1,2019
Allerdale Borough Council,15401,Supplies & Services,Planning and Development,General Stationery,10/04/2019,430481,61.16,HEATONS OFFICE SOLUTION ,A00069,1,2019
Allerdale Borough Council,15501,Supplies & Services,Planning Policy,Consultants Fees,24/04/2019,430482,1441,PROGRAMME OFFICER SOLUTIONS LTD,A01852,1,2019
Allerdale Borough Council,12405,Premises,Homelessness,Rentals and Lease Charges,03/04/2019,430483,200,READ GUESTHOUSE,A02591,1,2019
Allerdale Borough Council,12405,Premises,Homelessness,Rentals and Lease Charges,03/04/2019,430484,540,CUMBERLAND HOTEL,A02415,1,2019
Allerdale Borough Council,21150,Transfer Payments,Solway Coast AONB Core Funding,General Grants,10/04/2019,430485,1000,CUMBRIA WILDLIFE TRUST LTD,A01810,1,2019
Allerdale Borough Council,16101,Supplies & Services,Planning and Development,Statutory Notices,17/04/2019,430486,426.6,NEWSQUEST MEDIA GROUP,A02348,1,2019
Allerdale Borough Council,16101,Supplies & Services,Planning and Development,Statutory Notices,17/04/2019,430487,1106.32,NEWSQUEST MEDIA GROUP,A02348,1,2019
Allerdale Borough Council,16101,Supplies & Services,Planning and Development,Statutory Notices,17/04/2019,430488,504,NEWSQUEST MEDIA GROUP,A02348,1,2019
Allerdale Borough Council,15506,Supplies & Services,Environmental Protection,Professional Services,17/04/2019,430489,2366.47,UNITED UTILITIES PLC,A01657,1,2019
Allerdale Borough Council,16001,Supplies & Services,Banking and Interest,Bank Charges and Fees,10/04/2019,430490,15.82,ALLPAY.NET LIMITED,A00714,1,2019
Allerdale Borough Council,16001,Supplies & Services,Banking and Interest,Bank Charges and Fees,10/04/2019,430491,15.82,ALLPAY.NET LIMITED,A00714,1,2019
Allerdale Borough Council,16001,Supplies & Services,Banking and Interest,Bank Charges and Fees,10/04/2019,430492,20.29,ALLPAY.NET LIMITED,A00714,1,2019
Allerdale Borough Council,16001,Supplies & Services,Banking and Interest,Bank Charges and Fees,10/04/2019,430493,19.84,ALLPAY.NET LIMITED,A00714,1,2019
Allerdale Borough Council,10601,Employee Costs,Training,External Courses & Seminar Fees,17/04/2019,430494,355.5,GOVNET COMMUNICATIONS,A00132,1,2019
Allerdale Borough Council,16300,Supplies & Services,Tourism Incentive,Budget-Miscellaneous,03/04/2019,430495,2000,SOLWAY FIRTH PARTNERSHIP,A01548,1,2019
Allerdale Borough Council,21150,Transfer Payments,Shop Front Improvements,General Grants,03/04/2019,430496,590,Redacted information - included personal information ,M01600,1,2019
Allerdale Borough Council,15502,Supplies & Services,Legal Services,Land Registry Fees,02/04/2019,430497,42,HM LAND REGISTRY,A00505,1,2019
Allerdale Borough Council,15101,Supplies & Services,Multi-storey Car Park,Equipment Costs,03/04/2019,430498,2392.5,METRIC GROUP LTD,A00568,1,2019
Allerdale Borough Council,15811,Supplies & Services,IT Services,Software Maintenance,17/04/2019,430499,4575.38,MAYRISE LTD (YOTTA),A00382,1,2019
Allerdale Borough Council,12405,Premises,Customer Services Pay Group,Rentals and Lease Charges,10/04/2019,430500,1500,COCKERMOUTH TOWN COUNCIL,A00586,1,2019
Allerdale Borough Council,10202,Employee Costs,Human Resources Pay Group,Medical Screening,10/04/2019,430502,240,Redacted information - included personal information ,A02594,1,2019
Allerdale Borough Council,12101,Premises,Groyne Refurbishment Maryport,External Maintenance & Decoration,10/04/2019,430503,54700,THOMAS ARMSTRONG - CONSTRUCTION,C00003,1,2019
Allerdale Borough Council,15403,Supplies & Services,Communications and Marketing,Publications and Periodicals,10/04/2019,430504,109.6,P & D NEWSAGENTS,A00237,1,2019
Allerdale Borough Council,15506,Supplies & Services,Food and Occupational Health,Professional Services,17/04/2019,430505,180,PUBLIC HEALTH ENGLAND,A01839,1,2019
Allerdale Borough Council,14101,Transport,Waste Contract  Operational Costs,Vehicle Leasing,24/04/2019,430506,100.8,DAYS FLEET,A02515,1,2019
Allerdale Borough Council,14101,Transport,Waste Contract  Operational Costs,Vehicle Leasing,24/04/2019,430507,264.5,DAYS FLEET,A02515,1,2019
Allerdale Borough Council,14101,Transport,Waste Contract  Operational Costs,Vehicle Leasing,24/04/2019,430508,218.4,DAYS FLEET,A02515,1,2019
Allerdale Borough Council,16001,Supplies & Services,Banking and Interest,Bank Charges and Fees,10/04/2019,430509,15.82,ALLPAY.NET LIMITED,A00714,1,2019
Allerdale Borough Council,16001,Supplies & Services,Banking and Interest,Bank Charges and Fees,10/04/2019,430510,23.65,ALLPAY.NET LIMITED,A00714,1,2019
Allerdale Borough Council,16001,Supplies & Services,Banking and Interest,Bank Charges and Fees,10/04/2019,430511,20.74,ALLPAY.NET LIMITED,A00714,1,2019
Allerdale Borough Council,16001,Supplies & Services,Banking and Interest,Bank Charges and Fees,10/04/2019,430512,19.39,ALLPAY.NET LIMITED,A00714,1,2019
Allerdale Borough Council,16001,Supplies & Services,Banking and Interest,Bank Charges and Fees,10/04/2019,430513,53.89,ALLPAY.NET LIMITED,A00714,1,2019
Allerdale Borough Council,16001,Supplies & Services,Banking and Interest,Bank Charges and Fees,10/04/2019,430514,758.36,ALLPAY.NET LIMITED,A00714,1,2019
Allerdale Borough Council,15704,Supplies & Services,IT Services,Mobile Phones,03/04/2019,430515,98.28,VODAFONE,A00551,1,2019
Allerdale Borough Council,15601,Supplies & Services,Electoral Registration,Postage,03/04/2019,430516,36.12,ROYAL MAIL LETTERS,X00021,1,2019
Allerdale Borough Council,12403,Premises,Homelessness,Gas,,430517,65.71,NPOWER,X00277,1,2019
Allerdale Borough Council,12403,Premises,Homelessness,Gas,,430518,-520.11,NPOWER,X00277,1,2019
Allerdale Borough Council,21150,Transfer Payments,Shop Front Improvements,General Grants,03/04/2019,430519,675,Redacted information - included personal information ,M01601,1,2019
Allerdale Borough Council,15506,Supplies & Services,Assistance - Housing Services,Professional Services,03/04/2019,430520,1130,Redacted information - included personal information ,M01602,1,2019
Allerdale Borough Council,15501,Supplies & Services,Environmental Protection,Consultants Fees,03/04/2019,430521,350,COLE JARMAN LTD,A02312,1,2019
Allerdale Borough Council,26000,Earmarked Reserves,Licensing Service,Budget-Expd funded from Reserve,03/04/2019,430522,366.42,ADECCO RECRUITMENT,A00188,1,2019
Allerdale Borough Council,26000,Earmarked Reserves,Transfer of Land Charges Data,Budget-Expd funded from Reserve,03/04/2019,430523,535.84,ADECCO RECRUITMENT,A00188,1,2019
Allerdale Borough Council,26000,Earmarked Reserves,Transfer of Land Charges Data,Budget-Expd funded from Reserve,03/04/2019,430524,583.12,ADECCO RECRUITMENT,A00188,1,2019
Allerdale Borough Council,16300,Supplies & Services,Tourism Incentive,Budget-Miscellaneous,10/04/2019,430525,700,RUGBY LEAGUE WORLD CUP 2021,A02649,1,2019
Allerdale Borough Council,15804,Supplies & Services,IT Services,Computer Data Lines B.T.,03/04/2019,430526,45,VAIONI GROUP LTD,A02471,1,2019
Allerdale Borough Council,15804,Supplies & Services,IT Services,Computer Data Lines B.T.,24/04/2019,430527,45,VAIONI GROUP LTD,A02471,1,2019
Allerdale Borough Council,52106,Capital Expenditure,Solway coast multi-user pathway,Consultants Fees (Capital),10/04/2019,430528,35736,BLOOM PROCUREMENT SERVICES LTD,A02360,1,2019
Allerdale Borough Council,15200,Supplies & Services,Members Services,Budget-Catering,03/04/2019,430529,79.2,AL'S KITCHEN LTD,A00187,1,2019
Allerdale Borough Council,12305,Premises,Multi Storey Car Park Utilities & Maint,Inspections and Services,24/04/2019,430530,399,DORMA UK LTD,A01349,1,2019
Allerdale Borough Council,15508,Supplies & Services,Human Resources Pay Group,Subscriptions,24/04/2019,430531,200,NORTH WEST EMPLOYERS,A00139,1,2019
Allerdale Borough Council,26000,Earmarked Reserves,Comms & Marketing,Budget-Expd funded from Reserve,03/04/2019,430532,36961.4,CN EVENTS MANAGEMENT,A01099,1,2019
Allerdale Borough Council,10401,Employee Costs,Customer Services Pay Group,Agency Staff Costs,03/04/2019,430533,240.34,ADECCO RECRUITMENT,A00188,1,2019
Allerdale Borough Council,15702,Supplies & Services,IT Services,Line Rentals,03/04/2019,430534,310.58,BRITISH TELECOMMUNICATIONS,X00004,1,2019
Allerdale Borough Council,15804,Supplies & Services,IT Services,Computer Data Lines B.T.,24/04/2019,430535,1050.83,VAIONI GROUP LTD,A02471,1,2019
Allerdale Borough Council,10202,Employee Costs,Human Resources Pay Group,Medical Screening,10/04/2019,430536,525,FIT2WORK LTD,A02603,1,2019
Allerdale Borough Council,15200,Supplies & Services,Members Services,Budget-Catering,10/04/2019,430537,79.2,AL'S KITCHEN LTD,A00187,1,2019
Allerdale Borough Council,10605,Employee Costs,Members Services,Travel,10/04/2019,430538,180,REAYS COACHES LTD,A01280,1,2019
Allerdale Borough Council,15403,Supplies & Services,Chief Executive,Publications and Periodicals,24/04/2019,430539,140,THE MJ,A01494,1,2019
Allerdale Borough Council,15100,Supplies & Services,Internal Audit Pay Group,"Budget-Equipment, Furniture & Materials",24/04/2019,430540,139,EQUIP4WORK LTD T/A OFFICE FURNITURE ONLINE,A01958,1,2019
Allerdale Borough Council,15405,Supplies & Services,Community Safety - Funded,Use of External Printers,10/04/2019,430542,400,STH LAKELAND EQUALITY & DIVERSITY  P/SHIP,M01603,1,2019
Allerdale Borough Council,15101,Supplies & Services,Off-street - Owned,Equipment Costs,17/04/2019,430543,120.77,RELIANCE HIGH-TECH LTD,C00123,1,2019
Allerdale Borough Council,15501,Supplies & Services,Off-street - Owned,Consultants Fees,24/04/2019,430544,2486,METRIC GROUP LTD,A00568,1,2019
Allerdale Borough Council,15401,Supplies & Services,Corporate Postage and Stationary,General Stationery,24/04/2019,430545,55.5,LYRECO,A00043,1,2019
Allerdale Borough Council,15401,Supplies & Services,Corporate Postage and Stationary,General Stationery,24/04/2019,430546,18,LYRECO,A00043,1,2019
Allerdale Borough Council,15401,Supplies & Services,Corporate Postage and Stationary,General Stationery,24/04/2019,430547,45.84,LYRECO,A00043,1,2019
Allerdale Borough Council,15401,Supplies & Services,Corporate Postage and Stationary,General Stationery,24/04/2019,430548,88.47,LYRECO,A00043,1,2019
Allerdale Borough Council,15400,Supplies & Services,Members Services,"Budget-Printing,Stationery & Office Supp",24/04/2019,430549,115.53,LYRECO,A00043,1,2019
Allerdale Borough Council,15401,Supplies & Services,Corporate Postage and Stationary,General Stationery,24/04/2019,430550,170.51,LYRECO,A00043,1,2019
Allerdale Borough Council,15501,Supplies & Services,Homelessness,Consultants Fees,10/04/2019,430551,50,JAMES STREET GROUP PRACTICE,A00462,1,2019
Allerdale Borough Council,15904,Supplies & Services,Members Services,Training,10/04/2019,430552,67.8,AL'S KITCHEN LTD,A00187,1,2019
Allerdale Borough Council,10203,Employee Costs,"Revenues, Benefits & Recovery Paygroup",Subsistence Allowance,10/04/2019,430553,99,AL'S KITCHEN LTD,A00187,1,2019
Allerdale Borough Council,12101,Premises,Environmental Initiatives,External Maintenance & Decoration,10/04/2019,430554,1999,P PORTER WELDING & FABRICATION,C00166,1,2019
Allerdale Borough Council,12101,Premises,Multi Storey Car Park Utilities & Maint,External Maintenance & Decoration,10/04/2019,430555,1019,Redacted information - included personal information ,C00008,1,2019
Allerdale Borough Council,12101,Premises,Corporate Property Maintenance,External Maintenance & Decoration,24/04/2019,430556,226,GERDA SECURITY PRODUCTS LIMITED,C00132,1,2019
Allerdale Borough Council,15401,Supplies & Services,Corporate Postage and Stationary,General Stationery,24/04/2019,430557,133.28,LYRECO,A00043,1,2019
Allerdale Borough Council,15401,Supplies & Services,Corporate Postage and Stationary,General Stationery,24/04/2019,430558,29.94,LYRECO,A00043,1,2019
Allerdale Borough Council,20101,Third Party Payments,Public Convenience Cleaning,Cleansing Contract,10/04/2019,430559,200,Redacted information - included personal information ,A00209,1,2019
Allerdale Borough Council,15100,Supplies & Services,Museums,"Budget-Equipment, Furniture & Materials",24/04/2019,430560,1500,ARTLINK TRANSPORT & STORAGE LTD,A02362,1,2019
Allerdale Borough Council,20150,Third Party Payments,Museums,General Partnership Service Fees,10/04/2019,430561,7500,WORKINGTON HERITAGE GROUP LTD,A00339,1,2019
Allerdale Borough Council,12309,Premises,Corporate Property Maintenance,Fire and Safety,24/04/2019,430562,72.76,ADT FIRE & SECURITY PLC,C00035,1,2019
Allerdale Borough Council,12301,Premises,Corporate Property Maintenance,Security,24/04/2019,430563,72.76,ADT FIRE & SECURITY PLC,C00035,1,2019
Allerdale Borough Council,15508,Supplies & Services,Corporate Management,Subscriptions,01/05/2019,430564,729,DISTRICT COUNCILS NETWORK,A01466,1,2019
Allerdale Borough Council,12305,Premises,Corporate Property Maintenance,Inspections and Services,10/04/2019,430565,4.12,PHS GROUP LTD,C00028,1,2019
Allerdale Borough Council,12305,Premises,Corporate Property Maintenance,Inspections and Services,10/04/2019,430566,6.18,PHS GROUP LTD,C00028,1,2019
Allerdale Borough Council,12305,Premises,Public Convenience Cleaning,Inspections and Services,10/04/2019,430567,40.17,PHS GROUP LTD,C00028,1,2019
Allerdale Borough Council,16300,Supplies & Services,Tourism Incentive,Budget-Miscellaneous,10/04/2019,430568,325,LINDOW HALL,A00165,1,2019
Allerdale Borough Council,10110,Employee Costs,Busy Bees Childcare Scheme,Salary Sacrifice,10/04/2019,430569,1953,COMPUTERSHARE VOUCHER SERVICES,A00991,1,2019
Allerdale Borough Council,10110,Employee Costs,Busy Bees Childcare Scheme,Salary Sacrifice,01/05/2019,430570,107.42,COMPUTERSHARE VOUCHER SERVICES,A00991,1,2019
Allerdale Borough Council,12301,Premises,Corporate Property Maintenance,Security,10/04/2019,430571,304.39,G4S SECURE SOLUTIONS,A01597,1,2019
Allerdale Borough Council,10401,Employee Costs,Rogue Landlord Enforcement,Agency Staff Costs,10/04/2019,430572,1535.5,G2 RECRUITMENT SOLUTIONS LTD,C00198,1,2019
Allerdale Borough Council,10401,Employee Costs,Customer Services Pay Group,Agency Staff Costs,10/04/2019,430573,583.12,ADECCO RECRUITMENT,A00188,1,2019
Allerdale Borough Council,12301,Premises,Corporate Property Maintenance,Security,24/04/2019,430574,159.97,ADT FIRE & SECURITY PLC,C00035,1,2019
Allerdale Borough Council,12309,Premises,Corporate Property Maintenance,Fire and Safety,24/04/2019,430575,205.82,ADT FIRE & SECURITY PLC,C00035,1,2019
Allerdale Borough Council,21150,Transfer Payments,Shop Front Improvements,General Grants,10/04/2019,430576,648,Redacted information - included personal information ,M01604,1,2019
Allerdale Borough Council,54105,Capital Expenditure,Assistance - Housing Services,Grants  Private Individuals (Capital),10/04/2019,430577,250,IMPACT HOUSING ASSOCIATION LTD,A00236,1,2019
Allerdale Borough Council,54105,Capital Expenditure,Disabled Facilities Grants,Grants  Private Individuals (Capital),10/04/2019,430578,650,CONISTON CONSULTANTS LTD,X00210,1,2019
Allerdale Borough Council,54105,Capital Expenditure,Disabled Facilities Grants,Grants  Private Individuals (Capital),10/04/2019,430579,1150,CONISTON CONSULTANTS LTD,X00210,1,2019
Allerdale Borough Council,54105,Capital Expenditure,Disabled Facilities Grants,Grants  Private Individuals (Capital),10/04/2019,430580,3175.15,PARTNERSHIP IN PROPERTY MANAGEMENT LTD,X00120,1,2019
Allerdale Borough Council,54105,Capital Expenditure,Disabled Facilities Grants,Grants  Private Individuals (Capital),10/04/2019,430581,3517.38,PARTNERSHIP IN PROPERTY MANAGEMENT LTD,X00120,1,2019
Allerdale Borough Council,54105,Capital Expenditure,Disabled Facilities Grants,Grants  Private Individuals (Capital),10/04/2019,430582,3581.68,PARTNERSHIP IN PROPERTY MANAGEMENT LTD,X00120,1,2019
Allerdale Borough Council,15402,Supplies & Services,Multi-functional Printers,Photocopier Charges,10/04/2019,430583,48.8,KONICA MINOLTA BUSINESS SOLUTIONS UK LTD,A01556,1,2019
Allerdale Borough Council,53102,Not Applicable,Waste Contract,Purchase of Vehicles & Moveable Plant,10/04/2019,430584,152990,DENNIS EAGLE LIMITED,A02608,1,2019
Allerdale Borough Council,53102,Not Applicable,Waste Contract,Purchase of Vehicles & Moveable Plant,10/04/2019,430585,152990,DENNIS EAGLE LIMITED,A02608,1,2019
Allerdale Borough Council,53102,Not Applicable,Waste Contract,Purchase of Vehicles & Moveable Plant,10/04/2019,430586,152990,DENNIS EAGLE LIMITED,A02608,1,2019
Allerdale Borough Council,53102,Not Applicable,Waste Contract,Purchase of Vehicles & Moveable Plant,10/04/2019,430587,152990,DENNIS EAGLE LIMITED,A02608,1,2019
Allerdale Borough Council,53102,Not Applicable,Waste Contract,Purchase of Vehicles & Moveable Plant,10/04/2019,430588,152990,DENNIS EAGLE LIMITED,A02608,1,2019
Allerdale Borough Council,53102,Not Applicable,Waste Contract,Purchase of Vehicles & Moveable Plant,10/04/2019,430589,152990,DENNIS EAGLE LIMITED,A02608,1,2019
Allerdale Borough Council,53102,Not Applicable,Waste Contract,Purchase of Vehicles & Moveable Plant,10/04/2019,430590,152990,DENNIS EAGLE LIMITED,A02608,1,2019
Allerdale Borough Council,14202,Transport,Chief Executive,Hire Car and petrol,10/04/2019,430591,186.48,ENTERPRISE RENT A CAR,A01367,1,2019
Allerdale Borough Council,15501,Supplies & Services,Major Contract Procurement,Consultants Fees,10/04/2019,430592,11250,BLOOM PROCUREMENT SERVICES LTD,A02360,1,2019
Allerdale Borough Council,15403,Supplies & Services,Mayor's Fund,Publications and Periodicals,10/04/2019,430593,12.8,P & D NEWSAGENTS,A00237,1,2019
Allerdale Borough Council,12301,Premises,Corporate Property Maintenance,Security,17/04/2019,430594,787.49,ADT FIRE & SECURITY PLC,C00035,1,2019
Allerdale Borough Council,15506,Supplies & Services,Corporate Transformation,Professional Services,10/04/2019,430595,99.86,ENTERPRISE RENT A CAR,A01367,1,2019
Allerdale Borough Council,15804,Supplies & Services,IT Services,Computer Data Lines B.T.,24/04/2019,430596,870.63,VODAFONE (PREV CABLE & WIRELESS),A00934,1,2019
Allerdale Borough Council,15804,Supplies & Services,IT Services,Computer Data Lines B.T.,24/04/2019,430597,3225.07,VODAFONE (PREV CABLE & WIRELESS),A00934,1,2019
Allerdale Borough Council,20101,Third Party Payments,Recycling,Cleansing Contract,10/04/2019,430598,33892.63,CUMBRIA WASTE MANAGEMENT LTD,A01304,1,2019
Allerdale Borough Council,20101,Third Party Payments,Recycling,Cleansing Contract,10/04/2019,430599,25606.64,CUMBRIA WASTE MANAGEMENT LTD,A01304,1,2019
Allerdale Borough Council,12309,Premises,Corporate Property Maintenance,Fire and Safety,24/04/2019,430600,93.55,ADT FIRE & SECURITY PLC,C00035,1,2019
Allerdale Borough Council,12301,Premises,Corporate Property Maintenance,Security,24/04/2019,430601,105.24,ADT FIRE & SECURITY PLC,C00035,1,2019
Allerdale Borough Council,12301,Premises,Corporate Property Maintenance,Security,24/04/2019,430602,149.06,ADT FIRE & SECURITY PLC,C00035,1,2019
Allerdale Borough Council,12301,Premises,Corporate Property Maintenance,Security,24/04/2019,430603,152.02,ADT FIRE & SECURITY PLC,C00035,1,2019
Allerdale Borough Council,12301,Premises,Corporate Property Maintenance,Security,24/04/2019,430604,148.75,ADT FIRE & SECURITY PLC,C00035,1,2019
Allerdale Borough Council,12309,Premises,Corporate Property Maintenance,Fire and Safety,24/04/2019,430605,221.93,ADT FIRE & SECURITY PLC,C00035,1,2019
Allerdale Borough Council,12309,Premises,Corporate Property Maintenance,Fire and Safety,24/04/2019,430606,93.55,ADT FIRE & SECURITY PLC,C00035,1,2019
Allerdale Borough Council,12301,Premises,Corporate Property Maintenance,Security,24/04/2019,430607,128.63,ADT FIRE & SECURITY PLC,C00035,1,2019
Allerdale Borough Council,12301,Premises,Corporate Property Maintenance,Security,24/04/2019,430608,157.17,ADT FIRE & SECURITY PLC,C00035,1,2019
Allerdale Borough Council,12309,Premises,Multi Storey Car Park Utilities & Maint,Fire and Safety,24/04/2019,430609,400,COOK FIRE & SECURITY LTD,A02485,1,2019
Allerdale Borough Council,26000,Earmarked Reserves,Transfer of Land Charges Data,Budget-Expd funded from Reserve,10/04/2019,430610,583.12,ADECCO RECRUITMENT,A00188,1,2019
Allerdale Borough Council,12301,Premises,Corporate Property Maintenance,Security,24/04/2019,430611,93,ADT FIRE & SECURITY PLC,C00035,1,2019
Allerdale Borough Council,10401,Employee Costs,Environmental Protection,Agency Staff Costs,10/04/2019,430612,1021.88,G2 RECRUITMENT SOLUTIONS LTD,C00198,1,2019
Allerdale Borough Council,26000,Earmarked Reserves,Transfer of Land Charges Data,Budget-Expd funded from Reserve,10/04/2019,430613,189.12,ADECCO RECRUITMENT,A00188,1,2019
Allerdale Borough Council,26000,Earmarked Reserves,Licensing Service,Budget-Expd funded from Reserve,10/04/2019,430614,504.32,ADECCO RECRUITMENT,A00188,1,2019
Allerdale Borough Council,12301,Premises,Corporate Property Maintenance,Security,17/04/2019,430615,1350.61,ADT FIRE & SECURITY PLC,C00035,1,2019
Allerdale Borough Council,16350,Supplies & Services,Homelessness,Miscellaneous Expenses,10/04/2019,430616,86.26,IMPACT HOUSING ASSOCIATION LTD,A00236,1,2019
Allerdale Borough Council,10110,Employee Costs,Commissioning Support Pay Group,Salary Sacrifice,10/04/2019,430617,2387.52,TUSKERDIRECT LTD,A02186,1,2019
Allerdale Borough Council,15502,Supplies & Services,Legal Services,Land Registry Fees,09/04/2019,430618,45,HM LAND REGISTRY,A00505,1,2019
Allerdale Borough Council,15508,Supplies & Services,Finance and Accounting Pay Group,Subscriptions,17/04/2019,430619,5885,LG FUTURES,A02156,1,2019
Allerdale Borough Council,14101,Transport,Mayoral Services,Vehicle Leasing,17/04/2019,430620,170,DJH SILLOTH LTD T/A SOLWAY PRIVATE HIRE,M00890,1,2019
Allerdale Borough Council,10501,Employee Costs,Workington Nature Partnership,Advertising Vacancies,24/04/2019,430621,170,COUNTRYSIDE JOBS SERVICE,A01344,1,2019
Allerdale Borough Council,15506,Supplies & Services,Off-street - Owned,Professional Services,24/04/2019,430622,44.9,CHIPSIDE LIMITED,A00004,1,2019
Allerdale Borough Council,15506,Supplies & Services,Banking and Interest,Professional Services,01/05/2019,430623,9500,LINK TREASURY SERVICES LTD,A02551,1,2019
Allerdale Borough Council,15508,Supplies & Services,Corporate Management,Subscriptions,01/05/2019,430624,4174.81,NORTH WEST EMPLOYERS,A00139,1,2019
Allerdale Borough Council,15850,Supplies & Services,Solway Coast AONB Core Funding,General Computer Costs,17/04/2019,430625,2453.34,BLOOM PROCUREMENT SERVICES LTD,A02360,1,2019
Allerdale Borough Council,12405,Premises,Homelessness,Rentals and Lease Charges,17/04/2019,430626,240,CUMBERLAND HOTEL,A02415,1,2019
Allerdale Borough Council,12305,Premises,Corporate Property Maintenance,Inspections and Services,01/05/2019,430627,300,DORMA UK LTD,A01349,1,2019
Allerdale Borough Council,15501,Supplies & Services,Food and Occupational Health,Consultants Fees,17/04/2019,430628,900,JONATHAN B JACKSON LTD,A00874,1,2019
Allerdale Borough Council,10601,Employee Costs,Training,External Courses & Seminar Fees,24/04/2019,430629,810,LAVAT CONSULTING LTD ,A02544,1,2019
Allerdale Borough Council,15508,Supplies & Services,Legal Services,Subscriptions,24/04/2019,430630,570,LEXISNEXIS BUTTERWORTHS,A00356,1,2019
Allerdale Borough Council,53102,Not Applicable,Waste Contract  Operational Costs,Purchase of Vehicles & Moveable Plant,12/04/2019,430631,260,BORDER TOYOTA,A02647,1,2019
Allerdale Borough Council,53102,Not Applicable,Waste Contract,Purchase of Vehicles & Moveable Plant,12/04/2019,430632,17129.99,BORDER TOYOTA,A02647,1,2019
Allerdale Borough Council,15100,Supplies & Services,2019 Elections,"Budget-Equipment, Furniture & Materials",17/04/2019,430633,2451.33,MILLMOLL LTD T/A FURNITUREHIRE UK,A02155,1,2019
Allerdale Borough Council,12309,Premises,Corporate Property Maintenance,Fire and Safety,17/04/2019,430634,125,COMPASS SERVICES GROUP,A00839,1,2019
Allerdale Borough Council,12309,Premises,Corporate Property Maintenance,Fire and Safety,17/04/2019,430635,125,COMPASS SERVICES GROUP,A00839,1,2019
Allerdale Borough Council,12301,Premises,Corporate Property Maintenance,Security,17/04/2019,430636,387,COMPASS SERVICES GROUP,A00839,1,2019
Allerdale Borough Council,12301,Premises,Corporate Property Maintenance,Security,17/04/2019,430637,125,COMPASS SERVICES GROUP,A00839,1,2019
Allerdale Borough Council,12309,Premises,Corporate Property Maintenance,Fire and Safety,17/04/2019,430638,125,COMPASS SERVICES GROUP,A00839,1,2019
Allerdale Borough Council,12301,Premises,Corporate Property Maintenance,Security,17/04/2019,430639,125,COMPASS SERVICES GROUP,A00839,1,2019
Allerdale Borough Council,12301,Premises,Corporate Property Maintenance,Security,17/04/2019,430640,125,COMPASS SERVICES GROUP,A00839,1,2019
Allerdale Borough Council,12301,Premises,Corporate Property Maintenance,Security,17/04/2019,430641,397,COMPASS SERVICES GROUP,A00839,1,2019
Allerdale Borough Council,12301,Premises,Corporate Property Maintenance,Security,17/04/2019,430642,416,COMPASS SERVICES GROUP,A00839,1,2019
Allerdale Borough Council,12301,Premises,Corporate Property Maintenance,Security,17/04/2019,430643,387,COMPASS SERVICES GROUP,A00839,1,2019
Allerdale Borough Council,12309,Premises,Corporate Property Maintenance,Fire and Safety,17/04/2019,430644,125,COMPASS SERVICES GROUP,A00839,1,2019
Allerdale Borough Council,12309,Premises,Corporate Property Maintenance,Fire and Safety,17/04/2019,430645,290,COMPASS SERVICES GROUP,A00839,1,2019
Allerdale Borough Council,12301,Premises,Corporate Property Maintenance,Security,17/04/2019,430646,125,COMPASS SERVICES GROUP,A00839,1,2019
Allerdale Borough Council,12301,Premises,Corporate Property Maintenance,Security,17/04/2019,430647,542,COMPASS SERVICES GROUP,A00839,1,2019
Allerdale Borough Council,12202,Premises,Corporate Property Maintenance,Electrical Repairs and Service,17/04/2019,430648,209.4,JJ GROUP (CONTRACTING) LTD,C00038,1,2019
Allerdale Borough Council,12301,Premises,Corporate Property Maintenance,Security,17/04/2019,430649,125,COMPASS SERVICES GROUP,A00839,1,2019
Allerdale Borough Council,12301,Premises,Corporate Property Maintenance,Security,17/04/2019,430650,309,COMPASS SERVICES GROUP,A00839,1,2019
Allerdale Borough Council,10401,Employee Costs,Rogue Landlord Enforcement,Agency Staff Costs,17/04/2019,430651,1535.5,G2 RECRUITMENT SOLUTIONS LTD,C00198,1,2019
Allerdale Borough Council,14202,Transport,Housing Improvement,Hire Car and petrol,17/04/2019,430652,51.73,ENTERPRISE RENT A CAR,A01367,1,2019
Allerdale Borough Council,12305,Premises,Corporate Property Maintenance,Inspections and Services,17/04/2019,430653,1626,REFRIGERATION (MITTON) LTD,C00012,1,2019
Allerdale Borough Council,15811,Supplies & Services,Arcus,Software Maintenance,01/05/2019,430654,13000,IDOX SOFTWARE LTD,A00291,1,2019
Allerdale Borough Council,12405,Premises,Homelessness,Rentals and Lease Charges,17/04/2019,430655,6061.61,CASTLES & COASTS HOUSING ASSOCIATION LTD,A02465,1,2019
Allerdale Borough Council,12403,Premises,Homelessness,Gas,17/04/2019,430656,103.5,CASTLES & COASTS HOUSING ASSOCIATION LTD,A02465,1,2019
Allerdale Borough Council,15810,Supplies & Services,IT Services,Software Licences,24/04/2019,430657,2515.2,LOGMEIN TECHNOLOGIES UK TD,A02565,1,2019
Allerdale Borough Council,15811,Supplies & Services,IT Services,Software Maintenance,16/04/2019,430658,317,SAGE (UK) LTD,A01911,1,2019
Allerdale Borough Council,12402,Premises,Corporate Property Maintenance,Electricity,01/05/2019,430659,190,AMEY METERING LIMITED,A01503,1,2019
Allerdale Borough Council,15505,Supplies & Services,Planning and Development,Licences,24/04/2019,430660,18.02,CENTREMAPS,A00512,1,2019
Allerdale Borough Council,15101,Supplies & Services,Off-street - Owned,Equipment Costs,17/04/2019,430661,163.5,METRIC GROUP LTD,A00568,1,2019
Allerdale Borough Council,15101,Supplies & Services,Off-street - Owned,Equipment Costs,17/04/2019,430662,4533.44,METRIC GROUP LTD,A00568,1,2019
Allerdale Borough Council,15405,Supplies & Services,Solway Coast AONB Core Funding,Use of External Printers,17/04/2019,430663,160,FIRPRESS PRINTERS,A00063,1,2019
Allerdale Borough Council,15405,Supplies & Services,Rogue Landlord Enforcement,Use of External Printers,17/04/2019,430664,120,FIRPRESS PRINTERS,A00063,1,2019
Allerdale Borough Council,15403,Supplies & Services,Chief Executive,Publications and Periodicals,17/04/2019,430665,12.8,P & D NEWSAGENTS,A00237,1,2019
Allerdale Borough Council,16300,Supplies & Services,Tourism Incentive,Budget-Miscellaneous,24/04/2019,430666,15000,UCLAN BUSINESS SERVICES LTD,A01219,1,2019
Allerdale Borough Council,15550,Supplies & Services,Estates,General-Service Related Fees,24/04/2019,430667,1245,CIPFA BUSINESS LIMITED,A01791,1,2019
Allerdale Borough Council,15550,Supplies & Services,Estates,General-Service Related Fees,24/04/2019,430668,2410,CIPFA BUSINESS LIMITED,A01791,1,2019
Allerdale Borough Council,12101,Premises,Corporate Property Maintenance,External Maintenance & Decoration,17/04/2019,430669,1864.8,ASHCROFT DEMOLITION (CUMBRIA) LTD,C00197,1,2019
Allerdale Borough Council,12101,Premises,Corporate Property Maintenance,External Maintenance & Decoration,17/04/2019,430670,425.2,ASHCROFT DEMOLITION (CUMBRIA) LTD,C00197,1,2019
Allerdale Borough Council,15103,Supplies & Services,Solway Coast AONB Core Funding,Purchase of Materials,17/04/2019,430671,177.45,Redacted information - included personal information ,A00264,1,2019
Allerdale Borough Council,12101,Premises,Corporate Property Maintenance,External Maintenance & Decoration,01/05/2019,430672,53.41,FAST KEY SERVICES LTD,A01537,1,2019
Allerdale Borough Council,10401,Employee Costs,Environmental Protection,Agency Staff Costs,08/05/2019,430673,258.4,HAYS SPECIALIST RECRUITMENT LTD,A00280,1,2019
Allerdale Borough Council,10401,Employee Costs,Environmental Protection,Agency Staff Costs,08/05/2019,430674,258.4,HAYS SPECIALIST RECRUITMENT LTD,A00280,1,2019
Allerdale Borough Council,12408,Premises,Public Convenience Cleaning,Water & Sewage,17/04/2019,430675,147.48,WATERPLUS ,X00011,1,2019
Allerdale Borough Council,12500,Premises,Homelessness,Budget-Building Charges,17/04/2019,430676,631.09,ALLERDALE,A00342,1,2019
Allerdale Borough Council,12500,Premises,Homelessness,Budget-Building Charges,17/04/2019,430677,631.09,ALLERDALE,A00342,1,2019
Allerdale Borough Council,12500,Premises,Homelessness,Budget-Building Charges,17/04/2019,430678,631.09,ALLERDALE,A00342,1,2019
Allerdale Borough Council,15704,Supplies & Services,IT Services,Mobile Phones,17/04/2019,430679,889.58,BRITISH TELECOMMUNICATIONS,X00004,1,2019
Allerdale Borough Council,12500,Premises,Homelessness,Budget-Building Charges,17/04/2019,430680,631.09,ALLERDALE,A00342,1,2019
Allerdale Borough Council,12500,Premises,Homelessness,Budget-Building Charges,17/04/2019,430681,631.09,ALLERDALE,A00342,1,2019
Allerdale Borough Council,12500,Premises,Homelessness,Budget-Building Charges,17/04/2019,430682,632.35,ALLERDALE,A00342,1,2019
Allerdale Borough Council,12500,Premises,Homelessness,Budget-Building Charges,17/04/2019,430683,631.09,ALLERDALE,A00342,1,2019
Allerdale Borough Council,12402,Premises,Corporate Property Maintenance,Electricity,17/04/2019,430684,590.53,N POWER ,X00015,1,2019
Allerdale Borough Council,15702,Supplies & Services,IT Services,Line Rentals,17/04/2019,430685,19094.08,BRITISH TELECOMMUNICATIONS,X00004,1,2019
Allerdale Borough Council,15704,Supplies & Services,IT Services,Mobile Phones,01/05/2019,430686,496.27,BRITISH TELECOM PLC,A00363,1,2019
Allerdale Borough Council,15804,Supplies & Services,IT Services,Computer Data Lines B.T.,01/05/2019,430687,1878.32,BRITISH TELECOM PLC,A00363,1,2019
Allerdale Borough Council,12402,Premises,Homelessness,Electricity,08/05/2019,430688,80.89,OPUS ENERGY,X00226,1,2019
Allerdale Borough Council,12402,Premises,Homelessness,Electricity,17/04/2019,430689,22.81,OPUS ENERGY,X00226,1,2019
Allerdale Borough Council,12402,Premises,Homelessness,Electricity,17/04/2019,430690,24.23,OPUS ENERGY,X00226,1,2019
Allerdale Borough Council,12402,Premises,Homelessness,Electricity,17/04/2019,430691,18.97,OPUS ENERGY,X00226,1,2019
Allerdale Borough Council,12402,Premises,Homelessness,Electricity,17/04/2019,430692,20.24,OPUS ENERGY,X00226,1,2019
Allerdale Borough Council,12402,Premises,Homelessness,Electricity,17/04/2019,430693,20.44,OPUS ENERGY,X00226,1,2019
Allerdale Borough Council,12402,Premises,Homelessness,Electricity,17/04/2019,430694,33.09,OPUS ENERGY,X00226,1,2019
Allerdale Borough Council,15601,Supplies & Services,Electoral Registration,Postage,17/04/2019,430695,33.27,ROYAL MAIL LETTERS,X00021,1,2019
Allerdale Borough Council,12402,Premises,Car Parks Inspection & Maintenance,Electricity,17/04/2019,430696,100.67,N POWER ,X00015,1,2019
Allerdale Borough Council,12501,Premises,Public Convenience Cleaning,NNDR and Other Occupancy Charges,17/04/2019,430697,481.18,ALLERDALE,A00342,1,2019
Allerdale Borough Council,12501,Premises,Public Convenience Cleaning,NNDR and Other Occupancy Charges,17/04/2019,430698,945.18,ALLERDALE,A00342,1,2019
Allerdale Borough Council,12501,Premises,Corporate Property Maintenance,NNDR and Other Occupancy Charges,17/04/2019,430699,279.87,ALLERDALE,A00342,1,2019
Allerdale Borough Council,12501,Premises,Corporate Property Maintenance,NNDR and Other Occupancy Charges,17/04/2019,430700,64.6,ALLERDALE,A00342,1,2019
Allerdale Borough Council,12501,Premises,Public Convenience Cleaning,NNDR and Other Occupancy Charges,17/04/2019,430701,589.2,ALLERDALE,A00342,1,2019
Allerdale Borough Council,12501,Premises,Public Convenience Cleaning,NNDR and Other Occupancy Charges,17/04/2019,430702,324.06,ALLERDALE,A00342,1,2019
Allerdale Borough Council,15604,Supplies & Services,Corporate Postage and Stationary,Franking Machine refills,03/04/2019,430703,8000,FP TELESET,A00428,1,2019
Allerdale Borough Council,21150,Transfer Payments,Shop Front Improvements,General Grants,17/04/2019,430704,765,Redacted information - included personal information ,M01605,1,2019
Allerdale Borough Council,21150,Transfer Payments,Festivals & Events,General Grants,17/04/2019,430705,300,WORKINGTON TOWN COUNCIL,A01615,1,2019
Allerdale Borough Council,21150,Transfer Payments,Festivals & Events,General Grants,17/04/2019,430706,1000,CASTLE HILL TRUST CIO,M01606,1,2019
Allerdale Borough Council,21150,Transfer Payments,Festivals & Events,General Grants,17/04/2019,430707,1000,TRIATHLON EDINBURGH LTD,M01607,1,2019
Allerdale Borough Council,21150,Transfer Payments,Festivals & Events,General Grants,17/04/2019,430708,500,EDEN VALLEY ARTISTIC NETWORK WEST,M01608,1,2019
Allerdale Borough Council,16300,Supplies & Services,Tourism Incentive,Budget-Miscellaneous,17/04/2019,430709,4000,NORTHERN HERITAGE SERVICES LTD,M01609,1,2019
Allerdale Borough Council,54105,Capital Expenditure,Disabled Facilities Grants,Grants  Private Individuals (Capital),17/04/2019,430710,3204.74,PARTNERSHIP IN PROPERTY MANAGEMENT LTD,X00120,1,2019
Allerdale Borough Council,54105,Capital Expenditure,Disabled Facilities Grants,Grants  Private Individuals (Capital),17/04/2019,430711,3144.44,PARTNERSHIP IN PROPERTY MANAGEMENT LTD,X00120,1,2019
Allerdale Borough Council,54105,Capital Expenditure,Disabled Facilities Grants,Grants  Private Individuals (Capital),17/04/2019,430712,2782.26,PARTNERSHIP IN PROPERTY MANAGEMENT LTD,X00120,1,2019
Allerdale Borough Council,54105,Capital Expenditure,Disabled Facilities Grants,Grants  Private Individuals (Capital),17/04/2019,430713,3415,PARTNERSHIP IN PROPERTY MANAGEMENT LTD,X00120,1,2019
Allerdale Borough Council,54105,Capital Expenditure,Disabled Facilities Grants,Grants  Private Individuals (Capital),17/04/2019,430714,3324.53,PARTNERSHIP IN PROPERTY MANAGEMENT LTD,X00120,1,2019
Allerdale Borough Council,54105,Capital Expenditure,Cluster of Empty Homes,Grants  Private Individuals (Capital),17/04/2019,430715,500,Redacted information - included personal information ,X00274,1,2019
Allerdale Borough Council,54105,Capital Expenditure,Disabled Facilities Grants,Grants  Private Individuals (Capital),17/04/2019,430716,2220,DOLPHIN STAIRLIFTS CUMBRIA,X00107,1,2019
Allerdale Borough Council,15501,Supplies & Services,Strategic Priorities,Consultants Fees,17/04/2019,430717,51162.05,PERFECT CIRCLE JV LTD,A02478,1,2019
Allerdale Borough Council,16302,Supplies & Services,2019 Elections,Room Hire,17/04/2019,430718,30,COCKERMOUTH TOWN COUNCIL,A00586,1,2019
Allerdale Borough Council,15405,Supplies & Services,Waste Contract  Operational Costs,Use of External Printers,17/04/2019,430719,1400,FIRPRESS PRINTERS,A00063,1,2019
Allerdale Borough Council,15101,Supplies & Services,Off-street - Owned,Equipment Costs,24/04/2019,430720,352.5,METRIC GROUP LTD,A00568,1,2019
Allerdale Borough Council,15601,Supplies & Services,Corporate Postage and Stationary,Postage,17/04/2019,430721,803.68,UK MAIL GROUP PLC,A02371,1,2019
Allerdale Borough Council,14104,Transport,Allerdale Fleet,Repairs & Maintenance,01/05/2019,430722,49.5,DAYS FLEET,A02515,1,2019
Allerdale Borough Council,20113,Third Party Payments,Off-street - Owned,Other Agencies,01/05/2019,430723,291,PATROL,A00952,1,2019
Allerdale Borough Council,15508,Supplies & Services,Finance and Accounting Pay Group,Subscriptions,01/05/2019,430724,10465,LAVAT CONSULTING LTD,A02544,1,2019
Allerdale Borough Council,12305,Premises,Corporate Property Maintenance,Inspections and Services,24/04/2019,430725,454,BORDER FOOD MACHINERY,A00388,1,2019
Allerdale Borough Council,12101,Premises,Corporate Property Maintenance,External Maintenance & Decoration,17/04/2019,430726,60,CUMBRIA CC,A00066,1,2019
Allerdale Borough Council,15501,Supplies & Services,Solway Coast AONB Core Funding,Consultants Fees,24/04/2019,430727,2000,VOLUNTARY ACTION CUMBRIA,A01518,1,2019
Allerdale Borough Council,15102,Supplies & Services,Domestic Waste,Equipment Repair & Maintenance,17/04/2019,430728,148,Redacted information - included personal information ,A00176,1,2019
Allerdale Borough Council,20150,Third Party Payments,Footways,General Partnership Service Fees,17/04/2019,430729,3373.41,CUMBRIA CC ,A00066,1,2019
Allerdale Borough Council,15101,Supplies & Services,Recycling,Equipment Costs,17/04/2019,430730,376,J DUFFY LTD T/A PW CONF BUS SERVICES,A01846,1,2019
Allerdale Borough Council,15501,Supplies & Services,Major Contract Procurement,Consultants Fees,24/04/2019,430731,7813.46,BEVAN BRITTAN LLP,A02181,1,2019
Allerdale Borough Council,12402,Premises,Food and Occupational Health,Electricity,17/04/2019,430732,8.43,BRITISH GAS ,X00039,1,2019
Allerdale Borough Council,12402,Premises,Corporate Property Maintenance,Electricity,17/04/2019,430733,4775.5,N POWER,X00015,1,2019
Allerdale Borough Council,12501,Premises,Corporate Property Maintenance,NNDR and Other Occupancy Charges,17/04/2019,430734,1138.22,ALLERDALE,A00342,1,2019
Allerdale Borough Council,12501,Premises,Corporate Property Maintenance,NNDR and Other Occupancy Charges,17/04/2019,430735,1138.22,ALLERDALE,A00342,1,2019
Allerdale Borough Council,12402,Premises,Corporate Property Maintenance,Electricity,17/04/2019,430736,2131.49,N POWER ,X00015,1,2019
Allerdale Borough Council,12402,Premises,Multi Storey Car Park Utilities & Maint,Electricity,17/04/2019,430737,1917.66,N POWER,X00015,1,2019
Allerdale Borough Council,12402,Premises,Footways,Electricity,17/04/2019,430738,5893.55,N POWER ,X00015,1,2019
Allerdale Borough Council,12501,Premises,Corporate Property Maintenance,NNDR and Other Occupancy Charges,17/04/2019,430739,99288,ALLERDALE,A00342,1,2019
Allerdale Borough Council,12501,Premises,Corporate Property Maintenance,NNDR and Other Occupancy Charges,17/04/2019,430740,17430.5,ALLERDALE,A00342,1,2019
Allerdale Borough Council,12501,Premises,Corporate Property Maintenance,NNDR and Other Occupancy Charges,17/04/2019,430741,2111.3,ALLERDALE,A00342,1,2019
Allerdale Borough Council,12501,Premises,Corporate Property Maintenance,NNDR and Other Occupancy Charges,17/04/2019,430742,13257,ALLERDALE,A00342,1,2019
Allerdale Borough Council,12501,Premises,Corporate Property Maintenance,NNDR and Other Occupancy Charges,17/04/2019,430743,2184.95,ALLERDALE,A00342,1,2019
Allerdale Borough Council,12501,Premises,Corporate Property Maintenance,NNDR and Other Occupancy Charges,17/04/2019,430744,2037.65,ALLERDALE,A00342,1,2019
Allerdale Borough Council,12501,Premises,Public Convenience Cleaning,NNDR and Other Occupancy Charges,17/04/2019,430745,4468.1,ALLERDALE,A00342,1,2019
Allerdale Borough Council,12501,Premises,Public Convenience Cleaning,NNDR and Other Occupancy Charges,17/04/2019,430746,1448.45,ALLERDALE,A00342,1,2019
Allerdale Borough Council,12501,Premises,Corporate Property Maintenance,NNDR and Other Occupancy Charges,17/04/2019,430747,1252.05,ALLERDALE,A00342,1,2019
Allerdale Borough Council,12501,Premises,Corporate Property Maintenance,NNDR and Other Occupancy Charges,17/04/2019,430748,1301.15,ALLERDALE,A00342,1,2019
Allerdale Borough Council,12501,Premises,Public Convenience Cleaning,NNDR and Other Occupancy Charges,17/04/2019,430749,2086.75,ALLERDALE,A00342,1,2019
Allerdale Borough Council,12501,Premises,Public Convenience Cleaning,NNDR and Other Occupancy Charges,17/04/2019,430750,1789.2,ALLERDALE,A00342,1,2019
Allerdale Borough Council,12501,Premises,Corporate Property Maintenance,NNDR and Other Occupancy Charges,17/04/2019,430751,2602.3,ALLERDALE,A00342,1,2019
Allerdale Borough Council,12501,Premises,Corporate Property Maintenance,NNDR and Other Occupancy Charges,17/04/2019,430752,2553.2,ALLERDALE,A00342,1,2019
Allerdale Borough Council,12501,Premises,Corporate Property Maintenance,NNDR and Other Occupancy Charges,17/04/2019,430753,1644.85,ALLERDALE,A00342,1,2019
Allerdale Borough Council,12501,Premises,Corporate Property Maintenance,NNDR and Other Occupancy Charges,17/04/2019,430754,2700.5,ALLERDALE,A00342,1,2019
Allerdale Borough Council,12501,Premises,Corporate Property Maintenance,NNDR and Other Occupancy Charges,17/04/2019,430755,4910,ALLERDALE,A00342,1,2019
Allerdale Borough Council,15506,Supplies & Services,Legal Services,Professional Services,17/04/2019,430756,1792.5,BLOOM PROCUREMENT SERVICES LTD,A02360,1,2019
Allerdale Borough Council,21150,Transfer Payments,Corporate Priorities-Credit Union,General Grants,17/04/2019,430757,60000,AFFINITY CREDIT UNION,M01610,1,2019
Allerdale Borough Council,15901,Supplies & Services,Members Services,Expenses and Reimbursements,17/04/2019,430758,3.6,Redacted information - included personal information ,M00260,1,2019
Allerdale Borough Council,14203,Transport,Environmental Protection,Mileage Allowances - Car,17/04/2019,430759,240.3,Redacted information - included personal information ,M01611,1,2019
Allerdale Borough Council,21150,Transfer Payments,Shop Front Improvements,General Grants,17/04/2019,430760,585,Redacted information - included personal information ,M01612,1,2019
Allerdale Borough Council,10601,Employee Costs,Training,External Courses & Seminar Fees,08/05/2019,430761,595,INSTITUTE OF CEMETERY & CREMATORIUM MANAGEMENT,A00958,1,2019
Allerdale Borough Council,15811,Supplies & Services,IT Services,Software Maintenance,08/05/2019,430762,3265.95,IDOX SOFTWARE LTD,A00291,1,2019
Allerdale Borough Council,12101,Premises,Car Parks Inspection & Maintenance,External Maintenance & Decoration,24/04/2019,430763,468,Redacted information - included personal information ,C00008,1,2019
Allerdale Borough Council,15811,Supplies & Services,Arcus,Software Maintenance,08/05/2019,430764,190,FERRET INFORMATION SYSTEMS LTD,A02057,1,2019
Allerdale Borough Council,10601,Employee Costs,Training,External Courses & Seminar Fees,08/05/2019,430765,80,CITY OF LONDON CORPORATION,A02569,1,2019
Allerdale Borough Council,12101,Premises,Coastal Protection and Inland Flooding,External Maintenance & Decoration,24/04/2019,430766,1095,ASHCROFT DEMOLITION (CUMBRIA) LTD,C00197,1,2019
Allerdale Borough Council,15810,Supplies & Services,IT Services,Software Licences,08/05/2019,430767,7042.47,PROOFID LTD,A02561,1,2019
Allerdale Borough Council,15813,Supplies & Services,Arcus,Software Miscellaneous,08/05/2019,430768,14100,ARCUS GLOBAL LTD,A02496,1,2019
Allerdale Borough Council,12301,Premises,Multi Storey Car Park Utilities & Maint,Security,24/04/2019,430769,280,COMPASS SERVICES GROUP,A00839,1,2019
Allerdale Borough Council,12301,Premises,Corporate Property Maintenance,Security,24/04/2019,430770,304.39,G4S SECURE SOLUTIONS,A01597,1,2019
Allerdale Borough Council,10401,Employee Costs,Rogue Landlord Enforcement,Agency Staff Costs,24/04/2019,430771,1691.13,G2 RECRUITMENT SOLUTIONS LTD,C00198,1,2019
Allerdale Borough Council,15101,Supplies & Services,Workington Nature Partnership,Equipment Costs,24/04/2019,430772,735,ATLANTIC WATERSPORTS,A02637,1,2019
Allerdale Borough Council,15811,Supplies & Services,IT Services,Software Maintenance,08/05/2019,430773,128.24,SOFTWARE BOX LIMITED,A02613,1,2019
Allerdale Borough Council,10604,Employee Costs,Chief Executive,Hire of Training Rooms/Venues,24/04/2019,430774,30,COCKERMOUTH TOWN COUNCIL,A00586,1,2019
Allerdale Borough Council,16101,Supplies & Services,Planning and Development,Statutory Notices,01/05/2019,430775,252,NEWSQUEST MEDIA GROUP,A02348,1,2019
Allerdale Borough Council,12101,Premises,Harrington Harbour,External Maintenance & Decoration,24/04/2019,430776,300,IAN WILSON HAULAGE LIMITED,A01278,1,2019
Allerdale Borough Council,10401,Employee Costs,Customer Services Pay Group,Agency Staff Costs,24/04/2019,430777,612.92,ADECCO RECRUITMENT,A00188,1,2019
Allerdale Borough Council,10401,Employee Costs,Customer Services Pay Group,Agency Staff Costs,24/04/2019,430778,111.44,ADECCO RECRUITMENT,A00188,1,2019
Allerdale Borough Council,10401,Employee Costs,Customer Services Pay Group,Agency Staff Costs,24/04/2019,430779,358.2,ADECCO RECRUITMENT,A00188,1,2019
Allerdale Borough Council,15704,Supplies & Services,IT Services,Mobile Phones,01/05/2019,430780,21,EE LIMITED,X00290,1,2019
Allerdale Borough Council,12402,Premises,Public Convenience Cleaning,Electricity,24/04/2019,430781,12.09,N POWER,X00015,1,2019
Allerdale Borough Council,12402,Premises,Public Convenience Cleaning,Electricity,24/04/2019,430782,86,N POWER,X00015,1,2019
Allerdale Borough Council,12402,Premises,Multi Storey Car Park Utilities & Maint,Electricity,24/04/2019,430783,10.3,N POWER,X00015,1,2019
Allerdale Borough Council,12402,Premises,Corporate Property Maintenance,Electricity,24/04/2019,430784,1019.99,N POWER,X00015,1,2019
Allerdale Borough Council,15601,Supplies & Services,Corporate Postage and Stationary,Postage,24/04/2019,430785,1274.01,ROYAL MAIL LETTERS,X00021,1,2019
Allerdale Borough Council,12402,Premises,Public Convenience Cleaning,Electricity,24/04/2019,430786,5.59,N POWER,X00015,1,2019
Allerdale Borough Council,12402,Premises,Corporate Property Maintenance,Electricity,24/04/2019,430787,119.64,N POWER,X00015,1,2019
Allerdale Borough Council,12402,Premises,Corporate Property Maintenance,Electricity,24/04/2019,430788,11.58,N POWER,X00015,1,2019
Allerdale Borough Council,12402,Premises,Corporate Property Maintenance,Electricity,24/04/2019,430789,29.8,N POWER,X00015,1,2019
Allerdale Borough Council,12402,Premises,Corporate Property Maintenance,Electricity,24/04/2019,430790,6.61,N POWER,X00015,1,2019
Allerdale Borough Council,12402,Premises,Corporate Property Maintenance,Electricity,24/04/2019,430791,152.18,N POWER,X00015,1,2019
Allerdale Borough Council,12402,Premises,Corporate Property Maintenance,Electricity,24/04/2019,430792,99.51,N POWER,X00015,1,2019
Allerdale Borough Council,12402,Premises,Corporate Property Maintenance,Electricity,24/04/2019,430793,5.59,N POWER,X00015,1,2019
Allerdale Borough Council,12402,Premises,Corporate Property Maintenance,Electricity,24/04/2019,430794,6.61,N POWER,X00015,1,2019
Allerdale Borough Council,12402,Premises,Public Convenience Cleaning,Electricity,24/04/2019,430795,22.02,N POWER,X00015,1,2019
Allerdale Borough Council,12402,Premises,Public Convenience Cleaning,Electricity,24/04/2019,430796,21.52,N POWER,X00015,1,2019
Allerdale Borough Council,12402,Premises,Corporate Property Maintenance,Electricity,24/04/2019,430797,10.63,N POWER,X00015,1,2019
Allerdale Borough Council,12402,Premises,Corporate Property Maintenance,Electricity,24/04/2019,430798,15.73,N POWER,X00015,1,2019
Allerdale Borough Council,12402,Premises,Corporate Property Maintenance,Electricity,24/04/2019,430799,16.22,N POWER,X00015,1,2019
Allerdale Borough Council,12402,Premises,Corporate Property Maintenance,Electricity,24/04/2019,430800,-21.8,N POWER,X00015,1,2019
Allerdale Borough Council,12402,Premises,Corporate Property Maintenance,Electricity,24/04/2019,430801,-22.21,N POWER,X00015,1,2019
Allerdale Borough Council,12402,Premises,Corporate Property Maintenance,Electricity,24/04/2019,430802,2.13,N POWER,X00015,1,2019
Allerdale Borough Council,12402,Premises,Public Convenience Cleaning,Electricity,24/04/2019,430803,2.78,N POWER,X00015,1,2019
Allerdale Borough Council,12402,Premises,Car Parks Inspection & Maintenance,Electricity,24/04/2019,430804,19.99,N POWER,X00015,1,2019
Allerdale Borough Council,12402,Premises,Multi Storey Car Park Utilities & Maint,Electricity,24/04/2019,430805,5.59,N POWER,X00015,1,2019
Allerdale Borough Council,12402,Premises,Corporate Property Maintenance,Electricity,24/04/2019,430806,45.55,N POWER,X00015,1,2019
Allerdale Borough Council,30100,Income,Homelessness,Budget -Government Grants Income,24/04/2019,430807,38.03,ALLERDALE BOROUGH COUNCIL,X00034,1,2019
Allerdale Borough Council,15102,Supplies & Services,Allerdale Fleet,Equipment Repair & Maintenance,24/04/2019,430808,315.76,IRVING ENGINEERING LTD,A01959,1,2019
Allerdale Borough Council,16300,Supplies & Services,Supporting Leisure Activity across Aller,Budget-Miscellaneous,24/04/2019,430809,10000,WIGTON BATHS TRUST,M00604,1,2019
Allerdale Borough Council,15101,Supplies & Services,Waste Contract  Operational Costs,Equipment Costs,24/04/2019,430810,2840,ROADVERT LIMITED,A02644,1,2019
Allerdale Borough Council,15101,Supplies & Services,Waste Contract  Operational Costs,Equipment Costs,24/04/2019,430811,3550,ROADVERT LIMITED,A02644,1,2019
Allerdale Borough Council,15101,Supplies & Services,Waste Contract  Operational Costs,Equipment Costs,24/04/2019,430812,2556,ROADVERT LIMITED,A02644,1,2019
Allerdale Borough Council,15507,Supplies & Services,Land Charges Service,Searches,24/04/2019,430813,805,LAKE DISTRICT NATIONAL PARK AUTHORITY,A00415,1,2019
Allerdale Borough Council,16300,Supplies & Services,Tourism Incentive,Budget-Miscellaneous,24/04/2019,430814,265,CLICKING LOCAL,A02633,1,2019
Allerdale Borough Council,10401,Employee Costs,Environmental Protection,Agency Staff Costs,24/04/2019,430815,1050,G2 RECRUITMENT SOLUTIONS LTD,C00198,1,2019
Allerdale Borough Council,16302,Supplies & Services,Members Services,Room Hire,24/04/2019,430816,30,COCKERMOUTH TOWN COUNCIL,A00586,1,2019
Allerdale Borough Council,10401,Employee Costs,Environmental Protection,Agency Staff Costs,24/04/2019,430817,825,G2 RECRUITMENT SOLUTIONS LTD,C00198,1,2019
Allerdale Borough Council,10401,Employee Costs,Environmental Protection,Agency Staff Costs,08/05/2019,430818,53.16,HAYS SPECIALIST RECRUITMENT LTD,A00280,1,2019
Allerdale Borough Council,10401,Employee Costs,Environmental Protection,Agency Staff Costs,08/05/2019,430819,265.8,HAYS SPECIALIST RECRUITMENT LTD,A00280,1,2019
Allerdale Borough Council,15508,Supplies & Services,Corporate Management,Subscriptions,08/05/2019,430820,9413.16,LOCAL GOVERNMENT ASSOCIATION,A00686,1,2019
Allerdale Borough Council,14202,Transport,2019 Elections,Hire Car and petrol,24/04/2019,430821,45.74,ENTERPRISE RENT A CAR,A01367,1,2019
Allerdale Borough Council,15101,Supplies & Services,Street Naming and Numbering,Equipment Costs,08/05/2019,430822,293.5,N SIGN LTD,A00634,1,2019
Allerdale Borough Council,12501,Premises,Industrial Units,NNDR and Other Occupancy Charges,24/04/2019,430823,2570.4,ALLERDALE,A00342,1,2019
Allerdale Borough Council,12501,Premises,Tenanted Properties,NNDR and Other Occupancy Charges,24/04/2019,430824,5032.75,ALLERDALE,A00342,1,2019
Allerdale Borough Council,12402,Premises,Tenanted Properties,Electricity,24/04/2019,430825,24,ENGIE POWER LIMITED,X00286,1,2019
Allerdale Borough Council,12408,Premises,Food and Occupational Health,Water & Sewage,24/04/2019,430826,43.81,WATERPLUS,X00011,1,2019
Allerdale Borough Council,33106,Income,Bereavement Services,Cemetery - Headstones Erection Income,24/04/2019,430827,50,Redacted information - included personal information ,M01613,1,2019
Allerdale Borough Council,21150,Transfer Payments,Shop Front Improvements,General Grants,24/04/2019,430828,720,Redacted information - included personal information ,M01614,1,2019
Allerdale Borough Council,21150,Transfer Payments,Shop Front Improvements,General Grants,24/04/2019,430829,864,Redacted information - included personal information ,M01615,1,2019
Allerdale Borough Council,21150,Transfer Payments,Shop Front Improvements,General Grants,24/04/2019,430830,200,THE FOUNTAIN GALLERY,M01616,1,2019
Allerdale Borough Council,21150,Transfer Payments,Shop Front Improvements,General Grants,24/04/2019,430831,900,CUMBRIA CEREBRAL PALSY,M01617,1,2019
Allerdale Borough Council,21101,Transfer Payments,Assistance - Housing Services,Private Individuals,24/04/2019,430832,335,CASTLES & COASTS HOUSING ASSOCIATION LTD,A02465,1,2019
Allerdale Borough Council,54105,Capital Expenditure,Disabled Facilities Grants,Grants  Private Individuals (Capital),24/04/2019,430833,5357.44,PARTNERSHIP IN PROPERTY MANAGEMENT LTD,X00120,1,2019
Allerdale Borough Council,54105,Capital Expenditure,Disabled Facilities Grants,Grants  Private Individuals (Capital),24/04/2019,430834,2550,HANDICARE ACCESSIBILITY LTD,X00211,1,2019
Allerdale Borough Council,54105,Capital Expenditure,Disabled Facilities Grants,Grants  Private Individuals (Capital),24/04/2019,430835,1821.45,HANDICARE ACCESSIBILITY LTD,X00211,1,2019
Allerdale Borough Council,54105,Capital Expenditure,Disabled Facilities Grants,Grants  Private Individuals (Capital),24/04/2019,430836,2120,DOLPHIN STAIRLIFTS CUMBRIA,X00107,1,2019
Allerdale Borough Council,54105,Capital Expenditure,Disabled Facilities Grants,Grants  Private Individuals (Capital),24/04/2019,430837,6805,BLUE FLAME SERVICES LTD,X00213,1,2019
Allerdale Borough Council,10203,Employee Costs,Chief Executive,Subsistence Allowance,,430838,7.5,BARCLAYCARD COMMERCIAL ,X00207,1,2019
Allerdale Borough Council,15811,Supplies & Services,IT Services,Software Maintenance,,430839,754.97,BARCLAYCARD COMMERCIAL,X00207,1,2019
Allerdale Borough Council,14201,Transport,Mayoral Services,Public Transport,24/04/2019,430840,80,DJH SILLOTH LTD ,M00890,1,2019
Allerdale Borough Council,15501,Supplies & Services,Homelessness,Consultants Fees,24/04/2019,430841,35,ORCHARD HOUSE,A00972,1,2019
Allerdale Borough Council,12402,Premises,Corporate Property Maintenance,Electricity,08/05/2019,430842,215,NPOWER LIMITED,X00250,1,2019
Allerdale Borough Council,14202,Transport,Environmental Protection,Hire Car and petrol,24/04/2019,430843,51.73,ENTERPRISE RENT A CAR,A01367,1,2019
Allerdale Borough Council,15602,Supplies & Services,Environmental Protection,Business Reply Licences,24/04/2019,430844,99,ROYAL MAIL LETTERS,X00021,1,2019
Allerdale Borough Council,15506,Supplies & Services,Legal Services,Professional Services,01/05/2019,430845,2295.7,WOMBLE BOND DICKINSON (UK) LLP,A02640,1,2019
Allerdale Borough Council,15506,Supplies & Services,Legal Services,Professional Services,01/05/2019,430846,-2295.7,WOMBLE BOND DICKINSON (UK) LLP,A02640,1,2019
Allerdale Borough Council,15506,Supplies & Services,Legal Services,Professional Services,01/05/2019,430847,2185.3,WOMBLE BOND DICKINSON (UK) LLP,A02640,1,2019
Allerdale Borough Council,15604,Supplies & Services,Corporate Postage and Stationary,Franking Machine refills,01/05/2019,430848,650,FRANCOTYP POSTALIA LTD,A02187,1,2019
Allerdale Borough Council,12301,Premises,Corporate Property Maintenance,Security,01/05/2019,430849,21,COMPASS SERVICES GROUP,A00839,1,2019
Allerdale Borough Council,12305,Premises,Corporate Property Maintenance,Inspections and Services,15/05/2019,430850,304,GILGEN DOOR SYSTEMS UK LTD,A00542,1,2019
Allerdale Borough Council,12203,Premises,Public Convenience Cleaning,Plumbing and Heating Maintenance,01/05/2019,430851,788,Redacted information - included personal information ,C00008,1,2019
Allerdale Borough Council,15101,Supplies & Services,Workington Nature Partnership,Equipment Costs,15/05/2019,430852,1037.5,TUDOR (UK) LTD,A02630,1,2019
Allerdale Borough Council,12405,Premises,Homelessness,Rentals and Lease Charges,01/05/2019,430853,180,CUMBERLAND HOTEL,A02415,1,2019
Allerdale Borough Council,15601,Supplies & Services,Corporate Postage and Stationary,Postage,01/05/2019,430854,649.26,UK MAIL GROUP PLC,A02371,1,2019
Allerdale Borough Council,10401,Employee Costs,Customer Services Pay Group,Agency Staff Costs,01/05/2019,430855,593.02,ADECCO RECRUITMENT,A00188,1,2019
Allerdale Borough Council,15601,Supplies & Services,Corporate Postage and Stationary,Postage,01/05/2019,430856,1064.34,UK MAIL GROUP PLC,A02371,1,2019
Allerdale Borough Council,10601,Employee Costs,Homelessness,External Courses & Seminar Fees,,430857,50,BARCLAYCARD COMMERCIAL,X00207,1,2019
Allerdale Borough Council,54105,Capital Expenditure,Disabled Facilities Grants,Grants  Private Individuals (Capital),01/05/2019,430858,714,HOME GROUP LTD,M01586,1,2019
Allerdale Borough Council,16001,Supplies & Services,Banking and Interest,Bank Charges and Fees,01/05/2019,430859,25,BANK OF SCOTLAND,M00912,1,2019
Allerdale Borough Council,20150,Third Party Payments,Managed Car Parks,General Partnership Service Fees,01/05/2019,430860,53482.85,E H BOOTH & CO LIMITED,A00919,1,2019
Allerdale Borough Council,20150,Third Party Payments,Managed Car Parks,General Partnership Service Fees,01/05/2019,430861,12008.3,KESWICK MINISTRIES,A02390,1,2019
Allerdale Borough Council,15100,Supplies & Services,Solway Coast AONB Core Funding,"Budget-Equipment, Furniture & Materials",08/05/2019,430862,207.04,POSTURITE (UK) LTD,A00336,1,2019
Allerdale Borough Council,16302,Supplies & Services,2019 Elections,Room Hire,01/05/2019,430863,97.5,SOLWAY PLAIN FUTURES LTD,A01194,1,2019
Allerdale Borough Council,15508,Supplies & Services,Solway Coast AONB Core Funding,Subscriptions,01/05/2019,430864,2619,NAAONB,A00735,1,2019
Allerdale Borough Council,15508,Supplies & Services,Environmental Initiatives,Subscriptions,15/05/2019,430865,4495,KEEP BRITAIN TIDY,A01034,1,2019
Allerdale Borough Council,16350,Supplies & Services,Homelessness,Miscellaneous Expenses,01/05/2019,430866,282,Redacted information - included personal information ,M01618,1,2019
Allerdale Borough Council,20150,Third Party Payments,Managed Car Parks,General Partnership Service Fees,01/05/2019,430867,3869.1,MARYPORT HARBOUR & MARINA LIMITED (PREV MARYPORT DEVELOP),A00186,1,2019
Allerdale Borough Council,14203,Transport,Food Safety & Occupational Health,Mileage Allowances - Car,01/05/2019,430868,299.28,Redacted information - included personal information ,M01619,1,2019
Allerdale Borough Council,15101,Supplies & Services,Homelessness,Equipment Costs,01/05/2019,430869,23.32,ALLERDALE BOROUGH COUNCIL,X00034,1,2019
Allerdale Borough Council,15201,Supplies & Services,Leaders Services,Entertainment Of Visitors,,430870,43.9,BARCLAYCARD COMMERCIAL,X00207,1,2019
Allerdale Borough Council,15904,Supplies & Services,Members Services,Training,01/05/2019,430871,2879.4,HOEY AINSCOUGH ASSOCIATES LTD,A01683,1,2019
Allerdale Borough Council,15508,Supplies & Services,Economic Regeneration,Subscriptions,08/05/2019,430872,3250,BARNSLEY MBC - THE ALLIANCE,A00613,1,2019
Allerdale Borough Council,16300,Supplies & Services,Tourism Incentive,Budget-Miscellaneous,01/05/2019,430873,20,FIRPRESS PRINTERS,A00063,1,2019
Allerdale Borough Council,12101,Premises,Environmental Initiatives,External Maintenance & Decoration,15/05/2019,430874,2800,M& J THISTLETHWAITE EARTHWORKS LTD,C00225,1,2019
Allerdale Borough Council,15101,Supplies & Services,"Strategy, Policy & Performance Pay Gro",Equipment Costs,15/05/2019,430875,139,EQUIP4WORK LTD T/A OFFICE FURNITURE ONLINE,A01958,1,2019
Allerdale Borough Council,15502,Supplies & Services,Legal Services,Land Registry Fees,30/04/2019,430876,42,HM LAND REGISTRY,A00505,1,2019
Allerdale Borough Council,15502,Supplies & Services,Legal Services,Land Registry Fees,30/04/2019,430877,75,HM LAND REGISTRY,A00505,1,2019
Allerdale Borough Council,15502,Supplies & Services,2019 Elections,Land Registry Fees,30/04/2019,430878,33,HM LAND REGISTRY,A00505,1,2019
Allerdale Borough Council,26000,Earmarked Reserves,Community Safety - Funded,Budget-Expd funded from Reserve,01/05/2019,430890,34742.05,THE POLICE & CRIME COMMISSIONER FOR CUMBRIA,M00443,1,2019
Allerdale Borough Council,15506,Supplies & Services,Legal Services,Professional Services,01/05/2019,430891,583.9,BURNETTS SOLICITORS,A00129,1,2019
Allerdale Borough Council,15101,Supplies & Services,Community Safety,Equipment Costs,01/05/2019,430892,198,WORKINGTON TOWN COUNCIL,A01615,1,2019
Allerdale Borough Council,14201,Transport,Mayoral Services,Public Transport,01/05/2019,430893,130,DJH SILLOTH LTD T/A SOLWAY PRIVATE HIRE,M00890,1,2019
Allerdale Borough Council,14105,Transport,Property Services Pay Group,"Fuel, Lubricants & Consumables",30/04/2019,430894,435.92,BP OIL UK LTD ,X00022,1,2019
Allerdale Borough Council,14105,Transport,Solway Coast AONB Core Funding,"Fuel, Lubricants & Consumables",20/05/2019,430895,418.44,BP OIL UK LTD ,X00022,1,2019
Allerdale Borough Council,14105,Transport,Property Services Pay Group,"Fuel, Lubricants & Consumables",20/05/2019,430896,362.82,BP OIL UK LTD,X00022,1,2019
Allerdale Borough Council,14105,Transport,Property Services Pay Group,"Fuel, Lubricants & Consumables",20/05/2019,430897,305.92,BP OIL UK LTD,X00022,1,2019
Allerdale Borough Council,14105,Transport,Allerdale Fleet,"Fuel, Lubricants & Consumables",20/05/2019,430898,341.69,BP OIL UK LTD,X00022,1,2019
Allerdale Borough Council,12202,Premises,Multi Storey Car Park Utilities & Maint,Electrical Repairs and Service,01/05/2019,430899,3698.7,JJ GROUP (CONTRACTING) LTD,C00038,1,2019
Allerdale Borough Council,15201,Supplies & Services,Director of Resources & PA,Entertainment Of Visitors,01/05/2019,430900,39.6,AL'S KITCHEN LTD,A00187,1,2019
Allerdale Borough Council,20150,Third Party Payments,Keswick Public Toliets,General Partnership Service Fees,01/05/2019,430901,8572.63,ELECTRICITY NORTH WEST LTD,A00471,1,2019
Allerdale Borough Council,33112,Income,Planning and Development,Planning Fees Income,01/05/2019,430902,3684,Redacted information - included personal information ,M01620,1,2019
Allerdale Borough Council,15103,Supplies & Services,Solway AONB,Purchase of Materials,,430903,114.95,BARCLAYCARD COMMERCIAL,X00207,1,2019
Allerdale Borough Council,15502,Supplies & Services,Legal Services,Land Registry Fees,15/05/2019,430904,60,HM LAND REGISTRY,A00505,1,2019
Allerdale Borough Council,15502,Supplies & Services,Legal Services,Land Registry Fees,15/05/2019,430905,75,HM LAND REGISTRY,A00505,1,2019
Allerdale Borough Council,15811,Supplies & Services,IT Services,Software Maintenance,22/05/2019,430906,90.2,PHOENIX SOFTWARE LTD,A00229,1,2019
Allerdale Borough Council,15508,Supplies & Services,Building Control - Chargeable,Subscriptions,01/05/2019,430907,816,BSI GROUP,A00127,1,2019
Allerdale Borough Council,15501,Supplies & Services,Planning and Development,Consultants Fees,22/05/2019,430908,1600,URBAN AGILE LIMITED,A02655,1,2019
Allerdale Borough Council,15811,Supplies & Services,ICT Infrastructure Costs,Software Maintenance,22/05/2019,430909,1077.12,ELITETELE.COM,A02517,1,2019
Allerdale Borough Council,15100,Supplies & Services,Off-street - Owned,"Budget-Equipment, Furniture & Materials",01/05/2019,430912,352.5,METRIC GROUP LTD,A00568,1,2019
Allerdale Borough Council,16350,Supplies & Services,Off-street - Owned,Miscellaneous Expenses,01/05/2019,430913,921.8,3C PAYMENT LIMITED,A02382,1,2019
Allerdale Borough Council,15813,Supplies & Services,Arcus,Software Miscellaneous,01/05/2019,430914,5775,BLOOM PROCUREMENT SERVICES LTD,A02360,1,2019
Allerdale Borough Council,15506,Supplies & Services,Legal Costs - Community Stadium,Professional Services,01/05/2019,430915,7350.2,WOMBLE BOND DICKINSON (UK) LLP,A02640,1,2019
Allerdale Borough Council,15101,Supplies & Services,Off-street - Owned,Equipment Costs,01/05/2019,430916,257,METRIC GROUP LTD,A00568,1,2019
Allerdale Borough Council,16302,Supplies & Services,European Election 2019,Room Hire,01/05/2019,430917,24,GREENWICH LEISURE LTD ,A00136,1,2019
Allerdale Borough Council,10401,Employee Costs,Customer Services Pay Group,Agency Staff Costs,01/05/2019,430918,501.48,ADECCO RECRUITMENT,A00188,1,2019
Allerdale Borough Council,10401,Employee Costs,Customer Services Pay Group,Agency Staff Costs,01/05/2019,430919,457.7,ADECCO RECRUITMENT,A00188,1,2019
Allerdale Borough Council,15506,Supplies & Services,Legal Costs - Community Stadium,Professional Services,01/05/2019,430920,-8284.7,WOMBLE BOND DICKINSON (UK) LLP,A02640,1,2019
Allerdale Borough Council,15506,Supplies & Services,Legal Costs - Community Stadium,Professional Services,01/05/2019,430921,8284.7,WOMBLE BOND DICKINSON (UK) LLP,A02640,1,2019
Allerdale Borough Council,12402,Premises,Homelessness,Electricity,08/05/2019,430922,-21.95,OPUS ENERGY,X00226,1,2019
Allerdale Borough Council,12403,Premises,Corporate Property Maintenance,Gas,01/05/2019,430923,331.54,CORONA ENERGY,X00003,1,2019
Allerdale Borough Council,12403,Premises,Corporate Property Maintenance,Gas,01/05/2019,430924,666.63,CORONA ENERGY,X00003,1,2019
Allerdale Borough Council,12403,Premises,Corporate Property Maintenance,Gas,01/05/2019,430925,453.55,CORONA ENERGY,X00003,1,2019
Allerdale Borough Council,12403,Premises,Corporate Property Maintenance,Gas,01/05/2019,430926,342.61,CORONA ENERGY,X00003,1,2019
Allerdale Borough Council,12403,Premises,Corporate Property Maintenance,Gas,01/05/2019,430927,202.8,CORONA ENERGY,X00003,1,2019
Allerdale Borough Council,12403,Premises,Corporate Property Maintenance,Gas,01/05/2019,430928,74.52,CORONA ENERGY,X00003,1,2019
Allerdale Borough Council,12403,Premises,Corporate Property Maintenance,Gas,01/05/2019,430929,277.29,CORONA ENERGY,X00003,1,2019
Allerdale Borough Council,12402,Premises,Corporate Property Maintenance,Electricity,01/05/2019,430930,25.08,BRITISH GAS ,X00040,1,2019
Allerdale Borough Council,12408,Premises,Car Parks Inspection & Maintenance,Water & Sewage,01/05/2019,430931,5072.88,WATERPLUS,X00011,1,2019
Allerdale Borough Council,15603,Supplies & Services,Corporate Postage and Stationary,Franking Machine Costs,01/05/2019,430932,60,FRANCOTYP POSTALIA LTD,A02187,1,2019
Allerdale Borough Council,15501,Supplies & Services,"Strategy, Policy & Performance Pay Gro",Consultants Fees,01/05/2019,430933,-201.96,ELSWORTH COMMUNICATIONS,A01869,1,2019
Allerdale Borough Council,75103,Holding and Control Accounts,Payroll Suspense Account,PAYROLL April 2019 Travel & Subsistence  ,,,13447.05,INLAND REVENUE,X00038,2,2018
